[Event "44th Chess Olympiad Open 2022"]
[Site "Chennai"]
[Date "2022.08.05"]
[Round "7.49"]
[White "Chahin Godoy, Angel Eduardo"]
[Black "Delgado Rosas, Alex Antonio"]
[Result "0-1"]
[ECO "B27"]
[WhiteElo "1844"]
[BlackElo "2149"]
[Annotator "TA"]
[PlyCount "96"]
[EventDate "2022.07.29"]
[EventType "team-tourn"]
[EventCountry "IND"]
[SourceTitle "playchess.com"]
[Source "ChessBase"]
[SourceQuality "1"]
[WhiteTeam "Honduras"]
[BlackTeam "Panama"]
[WhiteTeamCountry "HON"]
[BlackTeamCountry "PAN"]
[TimeControl "40/5400+30:1800+30"]

{[%evp 10,96,38,35,34,38,47,2,8,-22,-22,-40,-25,-37,-31,-37,-30,-30,-25,-20,14,7,0,-12,4,0,21,-7,0,0,0,0,0,-20,-18,-112,-102,-133,-98,-137,-127,-80,-120,-129,-76,-89,-58,-64,-72,-79,-75,-185,-140,-160,-138,-190,-175,-215,-177,-214,-197,-223,-225,-335,-74,-83,0,-314,0,-81,-81,-148,-147,-105,-129,-178,-177,-174,-165,-501,-245,-314,-279,-352,-347,-343,-285,-637,-626]} 1. e4 {[%emt 0:00:25]} c5 {[%emt 0:00:02]} 2. Nf3 {[%emt 0:01:11]} g6 {[%emt 0:00:02]} 3. c3 {[%emt 0:03:12]} d5 {[%emt 0:04:25]} 4. e5 {[%emt 0:00:54]} Bg7 {[%emt 0:03:10]} 5. d4 {[%emt 0:00:10]} cxd4 {[%emt 0:06:16]} 6. cxd4 {[%emt 0:00:13]} Nh6 {[%emt 0:00:36] seems to push 6...Bg4 aside. B27: Sicilian: 2 Nf3, unusual Black 2nd moves.} 7. Nc3 {[%emt 0:01:33]} O-O {[%emt 0:02:04]} 8. Be2 {[%emt 0:00:22]} Nc6 {[%emt 0:01:41] The position is equal.} 9. Qb3 {[%emt 0:05:43]} Nf5 {[%emt 0:18:33] [#]} 10. Qd1 $146 {[%emt 0:23:21]} ({Predecessor:} 10. Be3 Nxe3 11. fxe3 e6 12. O-O Bh6 13. Nb5 Qb6 14. g4 Na5 15. Qc3 Rd8 16. g5 {1-0 (25) Serdijn Koster,A (2048)-Orlova,Y (1942) Leiden 2013}) 10... e6 {[%emt 0:04:04]} 11. g4 {[%emt 0:10:22]} Nh4 {[%emt 0:01:35]} 12. Nxh4 {[%emt 0:04:07]} Qxh4 {[%emt 0:00:15]} 13. Bf4 $1 {[%emt 0:00:11]} Qe7 {[%emt 0:02:34]} 14. g5 {[%emt 0:16:52] Prevents f6.} a6 {[%emt 0:13:08]} (14... Qb4 $5 {[%cal Rc6d4]} 15. Be3 Qxb2 $15) 15. a3 {[%emt 0:02:06]} b5 {[%emt 0:00:28]} 16. Qd2 {[%emt 0:03:26]} Bb7 {[%emt 0:09:51][%cal Oc6e5]} 17. O-O {[%emt 0:03:25]} Qc7 {[%emt 0:03:29]} 18. Rac1 {[%emt 0:04:21]} Qb6 {[%emt 0:01:47]} 19. Rfd1 {[%emt 0:00:10]} Na5 {[%emt 0:00:48]} 20. Rc2 {[%emt 0:03:29]} Rac8 {[%emt 0:00:27]} 21. Be3 {[%emt 0:08:20]} Rfd8 {[%emt 0:02:04]} 22. b4 {[%emt 0:03:11]} (22. Qd3 $11) 22... Nc4 $17 {[%emt 0:00:37]} 23. Bxc4 {[%emt 0:00:04]} dxc4 {[%emt 0:00:40]} (23... bxc4 24. Na4 Qc7 25. Nc5 $15) 24. f4 {[%emt 0:02:15][%cal Od4d5]} (24. d5 $2 Qc7 25. f4 Bxd5 26. Nxd5 Rxd5 $19) 24... Qc6 {[%emt 0:01:08] Against d5. aiming for ...Qh1+.} 25. d5 {[%emt 0:00:16]} exd5 {[%emt 0:00:19][%cal Od5d4]} 26. Bd4 {[%emt 0:00:10]} Bf8 {[%emt 0:01:36]} ({Black should try} 26... Ra8 27. Qf2 Bc8) 27. Qe3 {[%emt 0:00:53][%cal Of4f5]} a5 {[%emt 0:01:27]} 28. bxa5 {[%emt 0:00:09]} Ra8 $1 {[%emt 0:05:47]} (28... Bxa3 29. Nxb5 Qxb5 30. Qxa3 $11) 29. Rb1 {[%emt 0:03:12]} Rxa5 {[%emt 0:00:23]} 30. Rcb2 {[%emt 0:00:35]} (30. e6 $17 Qxe6 31. Qxe6 fxe6 32. Bb6) 30... Rxa3 $19 {[%emt 0:07:29]} 31. Rxb5 {[%emt 0:00:09] Hoping for Rb6.} Bc8 {[%emt 0:00:48]} 32. Rb6 {[%emt 0:00:26]} (32. Rb8 $17) 32... Qd7 {[%emt 0:00:01]} 33. Rb8 {[%emt 0:01:01]} Qg4+ {[%emt 0:01:46]} 34. Qg3 {[%emt 0:00:13] Black must now prevent Qxg4.} Qf5 {[%emt 0:00:19]} 35. Qe3 {[%emt 0:00:41]} Be7 {[%emt 0:01:26]} 36. Qg3 {[%emt 0:00:46]} (36. e6 {might work better.}) 36... Qc2 $2 {[%emt 0:02:06]} (36... h6 $19 {[%cal Rh6g5]} 37. h4 Kh7) 37. R8b2 $17 {[%emt 0:00:29] [#]} Qf5 {[%emt 0:00:39] Black is more active.} (37... Rxc3 $1 $17 38. Rxc2 (38. Qxc3 Qxc3 39. Bxc3 Bf5 $17) 38... Rxg3+ 39. hxg3 Bf5) 38. Rb8 $19 {[%emt 0:00:04]} Qc2 $2 {[%emt 0:00:12]} (38... h6 $19 {[%cal Rh6g5] has better winning chances.} 39. h4 Kh7) 39. R8b2 $17 {[%emt 0:00:05]} Rxc3 {[%emt 0:03:50]} ({Don't blunder} 39... Qf5 $2 40. Rb8 $19) 40. Qxc3 {[%emt 0:00:20]} (40. Rxc2 $142 Rxg3+ 41. hxg3) 40... Qxc3 {[%emt 0:00:16]} 41. Bxc3 {[%emt 0:30:03]} Bf5 $1 $36 {[%emt 0:30:45][%mdl 2048] White is under strong pressure.} 42. Bd4 {[%emt 0:00:00]} Bxb1 $19 {[%emt 0:00:00]} 43. Rxb1 {[%emt 0:00:00][%mdl 4096] Endgame KRB-KRB} Rc8 {[%emt 0:00:00] Strongly threatening ...c3.} 44. Kf1 $2 {[%emt 0:00:00]} (44. Kf2 {nothing else works.}) 44... Bc5 {[%emt 0:00:00]} (44... c3 $142 {And now ...c2 would win.} 45. Rb3 c2) 45. Bxc5 {[%emt 0:00:00]} Rxc5 {[%emt 0:00:00]} 46. Ke2 {[%emt 0:00:00] [#]} d4 {[%emt 0:00:00]} 47. Rb8+ {[%emt 0:00:00]} Kg7 {[%emt 0:00:00]} 48. Kd2 {[%emt 0:00:00] [#]} (48. Kd1) 48... c3+ $1 {[%emt 0:00:00] Weighted Error Value: White=0.35/Black=0.42} ({Stronger than} 48... Ra5 49. Rd8 $17) 0-1

[Event "44th Chess Olympiad Open 2022"]
[Site "Chennai"]
[Date "2022.08.05"]
[Round "7.50"]
[White "Ahmed, Ali Layth Ahmed"]
[Black "Cilia Vincenti, David"]
[Result "1-0"]
[ECO "D30"]
[WhiteElo "2249"]
[BlackElo "1904"]
[Annotator "NA RC"]
[PlyCount "51"]
[EventDate "2022.07.29"]
[EventType "team-tourn"]
[EventCountry "IND"]
[SourceTitle "playchess.com"]
[Source "ChessBase"]
[SourceQuality "1"]
[WhiteTeam "Iraq"]
[BlackTeam "Malta"]
[WhiteTeamCountry "IRQ"]
[BlackTeamCountry "MLT"]
[TimeControl "40/5400+30:1800+30"]

1. d4 {[%emt 0:00:04]} d5 {[%emt 0:00:10]} 2. c4 {[%emt 0:00:34]} e6 {[%emt 0:00:10]} 3. Nf3 {[%emt 0:00:59]} a6 {[%emt 0:00:09]} 4. e3 {[%emt 0:00:39]} Nf6 {[%emt 0:00:12]} 5. b3 {[%emt 0:00:14]} c5 {[%emt 0:00:23]} 6. Bd3 {[%emt 0:01:06]} cxd4 {[%emt 0:02:05]} 7. exd4 {[%emt 0:00:10]} Bb4+ {[%emt 0:00:16]} 8. Bd2 {[%emt 0:01:41]} Bxd2+ {[%emt 0:00:11]} 9. Qxd2 {[%emt 0:03:50]} dxc4 {[%emt 0:05:37]} 10. bxc4 {[%emt 0:01:30]} O-O {[%emt 0:01:12]} 11. O-O {[%emt 0:00:21]} Nc6 {[%emt 0:02:47]} 12. Nc3 {[%emt 0:00:46]} Qd6 {[%emt 0:01:34]} 13. Rfe1 {[%emt 0:07:51]} Rd8 {[%emt 0:01:04]} 14. Rad1 {[%emt 0:00:15]} h6 {[%emt 0:05:47]} 15. h3 {[%emt 0:05:32]} Bd7 {[%emt 0:02:37]} 16. Qe3 {[%emt 0:07:24]} Rac8 {[%emt 0:07:23]} 17. c5 {[%emt 0:05:46]} Qc7 {[%emt 0:04:51]} 18. Rb1 {[%emt 0:10:48]} Ne7 {[%emt 0:03:33]} 19. Ne5 {[%emt 0:04:35]} Ned5 {[%emt 0:05:53]} 20. Nxd5 {[%emt 0:00:25]} Nxd5 {[%emt 0:07:23]} 21. Qe4 {[%emt 0:01:02]} f5 {[%emt 0:05:23]} 22. Qf3 {[%emt 0:01:15]} Bc6 {[%emt 0:07:53]} 23. Bc4 {[%emt 0:05:44]} Rb8 {[%emt 0:10:22]} 24. Nxc6 {[%emt 0:10:12]} Qxc6 {[%emt 0:00:29]} 25. Re5 {[%emt 0:00:47]} b5 {[%emt 0:05:43]} 26. Bb3 {[%emt 0:03:35]} 1-0

[Event "44th Chess Olympiad Open 2022"]
[Site "Chennai"]
[Date "2022.08.05"]
[Round "7.50"]
[White "Pace, Colin"]
[Black "Mohammed, Zozek Salah Mohammed"]
[Result "0-1"]
[ECO "B90"]
[WhiteElo "2159"]
[BlackElo "2232"]
[Annotator "ChessBase"]
[PlyCount "64"]
[EventDate "2022.07.29"]
[EventType "team-tourn"]
[EventCountry "IND"]
[SourceTitle "playchess.com"]
[Source "ChessBase"]
[SourceQuality "1"]
[WhiteTeam "Malta"]
[BlackTeam "Iraq"]
[WhiteTeamCountry "MLT"]
[BlackTeamCountry "IRQ"]
[TimeControl "40/5400+30:1800+30"]

1. e4 {[%emt 0:00:03]} c5 {[%emt 0:00:25]} 2. Nf3 {[%emt 0:00:06]} d6 {[%emt 0:00:05]} 3. d4 {[%emt 0:00:04]} cxd4 {[%emt 0:00:03]} 4. Nxd4 {[%emt 0:00:03]} Nf6 {[%emt 0:00:07]} 5. Nc3 {[%emt 0:00:02]} a6 {[%emt 0:00:05]} 6. h3 {[%emt 0:00:09]} e5 {[%emt 0:00:06]} 7. Nde2 {[%emt 0:00:05]} h5 {[%emt 0:00:02]} 8. g3 {[%emt 0:00:18]} Be6 {[%emt 0:00:47]} 9. Bg2 {[%emt 0:00:40]} Nbd7 {[%emt 0:00:49]} 10. a4 {[%emt 0:01:47]} Rc8 {[%emt 0:00:31]} 11. O-O {[%emt 0:02:37]} Be7 {[%emt 0:00:30]} 12. b3 {[%emt 0:18:09]} Qc7 {[%emt 0:04:42]} 13. Ba3 {[%emt 0:10:02]} O-O {[%emt 0:08:17]} 14. Qd3 {[%emt 0:09:44]} Rfd8 {[%emt 0:00:52]} 15. Rfd1 {[%emt 0:03:16]} Nc5 {[%emt 0:05:51]} 16. Qe3 {[%emt 0:03:06]} b6 {[%emt 0:05:35]} 17. Rd2 {[%emt 0:07:48]} Qb8 {[%emt 0:16:09]} 18. f4 {[%emt 0:08:52]} exf4 {[%emt 0:16:06]} 19. Nxf4 {[%emt 0:05:38]} b5 {[%emt 0:01:43]} 20. axb5 {[%emt 0:01:40]} axb5 {[%emt 0:03:25]} 21. Ncd5 {[%emt 0:01:25]} Bxd5 {[%emt 0:03:15]} 22. Nxd5 {[%emt 0:06:48]} Nxd5 {[%emt 0:01:03]} 23. Rxd5 {[%emt 0:01:27]} Ne6 {[%emt 0:07:21]} 24. e5 {[%emt 0:07:50]} b4 {[%emt 0:04:56]} 25. Bb2 {[%emt 0:09:34]} Rxc2 {[%emt 0:01:16]} 26. Rb1 {[%emt 0:00:34]} h4 {[%emt 0:03:58]} 27. Be4 {[%emt 0:01:00]} Bg5 {[%emt 0:01:59]} 28. Qf3 {[%emt 0:00:14]} Qa7+ {[%emt 0:03:02]} 29. Kh1 {[%emt 0:00:15]} Rf2 {[%emt 0:01:42]} 30. Qh5 {[%emt 0:00:14]} hxg3 {[%emt 0:02:05]} 31. Qh7+ {[%emt 0:01:01]} Kf8 {[%emt 0:00:00]} 32. exd6 {[%emt 0:00:05]} Rh2# {[%emt 0:00:00]} 0-1

[Event "44th Chess Olympiad Open 2022"]
[Site "Chennai"]
[Date "2022.08.05"]
[Round "7.50"]
[White "Rabeea, Sabah Nori"]
[Black "Mizzi, Jack"]
[Result "1-0"]
[ECO "D46"]
[WhiteElo "2122"]
[BlackElo "1913"]
[Annotator "TA"]
[PlyCount "77"]
[EventDate "2022.07.29"]
[EventType "team-tourn"]
[EventCountry "IND"]
[SourceTitle "playchess.com"]
[Source "ChessBase"]
[SourceQuality "1"]
[WhiteTeam "Iraq"]
[BlackTeam "Malta"]
[WhiteTeamCountry "IRQ"]
[BlackTeamCountry "MLT"]
[TimeControl "40/5400+30:1800+30"]

{[%evp 24,77,55,50,55,52,60,43,58,52,48,42,47,52,47,43,39,6,26,23,51,25,25,18,27,27,21,27,38,28,21,30,24,25,303,302,303,294,287,277,280,280,280,279,266,255,293,335,252,165,467,404,423,341,1900,1199]} 1. d4 {[%emt 0:00:37]} d5 {[%emt 0:00:14]} 2. Nf3 {[%emt 0:00:18]} Nf6 {[%emt 0:00:25]} 3. c4 {[%emt 0:00:09]} c6 {[%emt 0:00:37]} 4. Nc3 {[%emt 0:02:14]} e6 {[%emt 0:01:35]} 5. e3 {[%emt 0:00:10]} Nbd7 {[%emt 0:00:43]} 6. Bd3 {[%emt 0:00:10]} Bd6 {[%emt 0:00:52]} 7. O-O {[%emt 0:00:09]} O-O {[%emt 0:01:21]} 8. e4 {[%emt 0:01:57]} dxe4 {[%emt 0:04:34]} 9. Nxe4 {[%emt 0:00:12]} Nxe4 {[%emt 0:02:11]} 10. Bxe4 {[%emt 0:00:02]} Nf6 {[%emt 0:01:05]} 11. Bc2 {[%emt 0:01:26]} c5 {[%emt 0:05:55] Nowadays more popular than 11...h6.} 12. Bg5 {[%emt 0:07:03]} h6 {[%emt 0:05:22]} 13. Bh4 $1 {[%emt 0:00:19]} cxd4 {[%emt 0:04:38] D46: Semi-Slav: 5 e3 Nbd7 6 Bd3, Black avoids the Meran.} 14. Qd3 {[%emt 0:01:50] Strongly threatening Bxf6.} (14. Nxd4 Be5 15. Nb5 (15. Bxf6 Qxf6 16. Nf3 Rd8 $15) 15... Bd7 $11) 14... Re8 $1 {[%emt 0:01:26]} 15. Nxd4 {[%emt 0:31:40] Black must now prevent Rad1.} ({Don't play} 15. Bxf6 Qxf6 16. Nxd4 g6 $11) 15... Be5 {[%emt 0:19:37] White is slightly better.} 16. Rad1 {[%emt 0:08:02][%cal Ba1d1,Bd1d4,Bd4d6][%mdl 32] aiming for Bxf6.} Bxd4 {[%emt 0:12:15]} 17. Qxd4 {[%emt 0:00:04]} Qxd4 {[%emt 0:00:08]} 18. Rxd4 {[%emt 0:00:23]} e5 {[%emt 0:03:24]} 19. Rd6 {[%emt 0:01:46]} Be6 {[%emt 0:01:13] [#]} 20. c5 $146 {[%emt 0:03:35]} ({Predecessor:} 20. b3 Rac8 21. Rd2 Kf8 22. Rfd1 Rc7 23. Bg3 Rd7 24. f3 Rxd2 25. Rxd2 Nd7 26. Be4 {1-0 (67) Zpevak,P (2401)-Nemcova,K (2247) Ostrava 2010}) 20... Rec8 {[%emt 0:10:33]} 21. b4 {[%emt 0:02:06]} a5 {[%emt 0:03:17]} 22. Bxf6 {[%emt 0:09:17]} (22. a3 $5 {[%cal Rf1d1]}) 22... gxf6 {[%emt 0:00:39]} 23. Be4 {[%emt 0:00:10]} Rc7 {[%emt 0:03:23]} 24. a3 {[%emt 0:00:24][%cal Og2g4,Ba2a3,Ba3b4][%mdl 32]} axb4 {[%emt 0:05:41]} 25. axb4 {[%emt 0:00:02][%cal Og2g4]} f5 {[%emt 0:00:35]} 26. Bd5 {[%emt 0:04:54]} Bxd5 {[%emt 0:00:32]} 27. Rxd5 $11 {[%emt 0:00:02][%mdl 4096] Endgame KRR-KRR} Ra4 {[%emt 0:00:50]} 28. Rb1 {[%emt 0:00:39]} b6 $2 {[%emt 0:00:57][%mdl 8192] Loses the game.} (28... f6 $11) 29. cxb6 $18 {[%emt 0:07:20]} ({Not} 29. Rxe5 bxc5 30. bxc5 Rc4 $16) 29... Rxb4 {[%emt 0:00:53]} 30. Rdd1 {[%emt 0:00:01]} Rxb1 {[%emt 0:01:18]} 31. Rxb1 {[%emt 0:04:21] KR-KR} Rb7 {[%emt 0:02:41] [#]} 32. Kf1 $1 {[%emt 0:00:01] Threatens to win with Ke2.} Kf8 {[%emt 0:00:20]} 33. Ke2 {[%emt 0:00:02] Hoping for Kd3.} Ke7 {[%emt 0:00:13]} 34. Kd3 {[%emt 0:00:01]} Kd6 {[%emt 0:00:50]} 35. Kc4 {[%emt 0:00:02]} Kc6 {[%emt 0:00:18]} 36. g3 {[%emt 0:00:14]} f6 $2 {[%emt 0:03:06]} (36... Rxb6 $2 37. Rxb6+ Kxb6 38. Kd5 $18) (36... f4) 37. h4 {[%emt 0:00:54]} h5 {[%emt 0:00:34]} 38. Rb5 {[%emt 0:00:09] And now Rc5+ would win.} Rd7 $2 {[%emt 0:02:50] [#]} (38... Rxb6 $2 39. Rxb6+ Kxb6 40. Kd5 $18) (38... Kd6 39. f4 Rb8) 39. b7 $1 {[%emt 0:01:18] Weighted Error Value: White=0.12 (very precise) /Black=0.41} 1-0

[Event "44th Chess Olympiad Open 2022"]
[Site "Chennai"]
[Date "2022.08.05"]
[Round "7.50"]
[White "Darmanin, Jake"]
[Black "Salih, Akar Ali Salih"]
[Result "0-1"]
[ECO "B53"]
[WhiteElo "2101"]
[BlackElo "2243"]
[Annotator "ChessBase"]
[PlyCount "68"]
[EventDate "2022.07.29"]
[EventType "team-tourn"]
[EventCountry "IND"]
[SourceTitle "playchess.com"]
[Source "ChessBase"]
[SourceQuality "1"]
[WhiteTeam "Malta"]
[BlackTeam "Iraq"]
[WhiteTeamCountry "MLT"]
[BlackTeamCountry "IRQ"]
[TimeControl "40/5400+30:1800+30"]

1. e4 {[%emt 0:00:05]} c5 {[%emt 0:00:13]} 2. Nf3 {[%emt 0:00:11]} d6 {[%emt 0:00:18]} 3. d4 {[%emt 0:00:09]} cxd4 {[%emt 0:00:17]} 4. Qxd4 {[%emt 0:00:09]} a6 {[%emt 0:03:35]} 5. Be3 {[%emt 0:01:24]} Nc6 {[%emt 0:00:28]} 6. Qd2 {[%emt 0:00:10]} Nf6 {[%emt 0:03:38]} 7. Nc3 {[%emt 0:00:46]} e6 {[%emt 0:03:19]} 8. O-O-O {[%emt 0:02:32]} Qc7 {[%emt 0:01:07]} 9. Nd4 {[%emt 0:10:33]} Bd7 {[%emt 0:17:51]} 10. f4 {[%emt 0:08:41]} Na5 {[%emt 0:04:14]} 11. Qd3 {[%emt 0:22:45]} b5 {[%emt 0:01:44]} 12. Be2 {[%emt 0:10:49]} Rc8 {[%emt 0:18:56]} 13. g4 {[%emt 0:05:23]} b4 {[%emt 0:02:23]} 14. Nb1 {[%emt 0:01:28]} e5 {[%emt 0:00:50]} 15. Nb3 {[%emt 0:09:26]} Bb5 {[%emt 0:08:37]} 16. Qd2 {[%emt 0:00:14]} Bxe2 {[%emt 0:02:09]} 17. Qxe2 {[%emt 0:00:12]} Nc4 {[%emt 0:02:26]} 18. Na1 {[%emt 0:09:43]} Qa5 {[%emt 0:04:00]} 19. a3 {[%emt 0:07:59]} bxa3 {[%emt 0:00:56]} 20. b3 {[%emt 0:02:47]} Nxe3 {[%emt 0:01:04]} 21. Qxe3 {[%emt 0:00:36]} a2 {[%emt 0:00:06]} 22. g5 {[%emt 0:02:10]} axb1=Q+ {[%emt 0:00:54]} 23. Kxb1 {[%emt 0:00:01]} Nd7 {[%emt 0:01:47]} 24. f5 {[%emt 0:01:20]} Qc5 {[%emt 0:01:05]} 25. Qe2 {[%emt 0:00:20]} Qb5 {[%emt 0:00:47]} 26. Qg4 {[%emt 0:01:06]} h5 {[%emt 0:02:25]} 27. Qf3 {[%emt 0:00:45]} Nb6 {[%emt 0:00:41]} 28. g6 {[%emt 0:01:36]} f6 {[%emt 0:00:33]} 29. Rd3 {[%emt 0:00:25]} Be7 {[%emt 0:02:44]} 30. Rhd1 {[%emt 0:00:11]} Rc6 {[%emt 0:01:22]} 31. Qf2 {[%emt 0:01:14]} Qb4 {[%emt 0:02:41]} 32. Qe2 {[%emt 0:00:43]} Na4 {[%emt 0:00:15]} 33. c4 {[%emt 0:00:33]} Nc3+ {[%emt 0:00:13]} 34. Rxc3 {[%emt 0:00:01]} Qxc3 {[%emt 0:00:01]} 0-1

[Event "44th Chess Olympiad Open 2022"]
[Site "Chennai"]
[Date "2022.08.05"]
[Round "7.51"]
[White "Khusenkhojaev, Mustafokhuja"]
[Black "Etienne, Angelo"]
[Result "1-0"]
[ECO "D38"]
[WhiteElo "2238"]
[BlackElo "2036"]
[Annotator "NA RC"]
[PlyCount "87"]
[EventDate "2022.07.29"]
[EventType "team-tourn"]
[EventCountry "IND"]
[SourceTitle "playchess.com"]
[Source "ChessBase"]
[SourceQuality "1"]
[WhiteTeam "Tajikistan"]
[BlackTeam "Haiti"]
[WhiteTeamCountry "TJK"]
[BlackTeamCountry "HAI"]
[TimeControl "40/5400+30:1800+30"]

1. d4 {[%emt 0:00:03]} Nf6 {[%emt 0:00:03]} 2. Nf3 {[%emt 0:00:11]} e6 {[%emt 0:00:06]} 3. c4 {[%emt 0:00:13]} d5 {[%emt 0:00:07]} 4. Bg5 {[%emt 0:00:44]} h6 {[%emt 0:00:43]} 5. Bxf6 {[%emt 0:00:14]} Qxf6 {[%emt 0:00:02]} 6. e3 {[%emt 0:00:12]} Bb4+ {[%emt 0:01:33]} 7. Nc3 {[%emt 0:00:20]} O-O {[%emt 0:00:02]} 8. Qb3 {[%emt 0:02:01]} Bxc3+ {[%emt 0:00:38]} 9. bxc3 {[%emt 0:01:35]} dxc4 {[%emt 0:09:00]} 10. Bxc4 {[%emt 0:03:15]} Nc6 {[%emt 0:02:18]} 11. Be2 {[%emt 0:03:03]} b6 {[%emt 0:01:51]} 12. O-O {[%emt 0:01:23]} Bb7 {[%emt 0:00:09]} 13. c4 {[%emt 0:01:29]} Na5 {[%emt 0:00:43]} 14. Qc2 {[%emt 0:00:57]} Bxf3 {[%emt 0:07:13]} 15. Bxf3 {[%emt 0:00:16]} Rad8 {[%emt 0:00:28]} 16. c5 {[%emt 0:04:23]} e5 {[%emt 0:00:06]} 17. d5 {[%emt 0:02:14]} Nb7 {[%emt 0:00:36]} 18. cxb6 {[%emt 0:03:15]} cxb6 {[%emt 0:00:02]} 19. Rfc1 {[%emt 0:01:35]} Nc5 {[%emt 0:00:19]} 20. a4 {[%emt 0:01:30]} Rfe8 {[%emt 0:00:07]} 21. e4 {[%emt 0:00:27]} Qf4 {[%emt 0:01:05]} 22. Ra3 {[%emt 0:11:15]} f5 {[%emt 0:06:47]} 23. g3 {[%emt 0:00:51]} Qg5 {[%emt 0:00:03]} 24. Rd1 {[%emt 0:00:35]} Rd6 {[%emt 0:00:50]} 25. a5 {[%emt 0:06:30]} Rf8 {[%emt 0:04:01]} 26. axb6 {[%emt 0:02:12]} axb6 {[%emt 0:00:06]} 27. Bg2 {[%emt 0:03:05]} Kh8 {[%emt 0:03:02]} 28. exf5 {[%emt 0:03:35]} Qxf5 {[%emt 0:01:36]} 29. Qxf5 {[%emt 0:00:40]} Rxf5 {[%emt 0:00:14]} 30. Ra8+ {[%emt 0:00:06]} Kh7 {[%emt 0:00:03]} 31. Rc8 {[%emt 0:00:16]} Rf7 {[%emt 0:02:23]} 32. Re8 {[%emt 0:03:53]} b5 {[%emt 0:10:32]} 33. Rxe5 {[%emt 0:01:11]} b4 {[%emt 0:00:18]} 34. Rc1 {[%emt 0:01:25]} Rc7 {[%emt 0:00:23]} 35. Re4 {[%emt 0:01:21]} b3 {[%emt 0:08:39]} 36. Rb4 {[%emt 0:00:13]} Rb7 {[%emt 0:04:48]} 37. Rxb7 {[%emt 0:00:11]} Nxb7 {[%emt 0:00:01]} 38. Be4+ {[%emt 0:00:10]} Kg8 {[%emt 0:01:05]} 39. Rc8+ {[%emt 0:00:06]} Rd8 {[%emt 0:00:14]} 40. Rc6 {[%emt 0:03:17]} Rd6 {[%emt 0:01:24]} 41. f3 {[%emt 0:33:21]} Kf8 {[%emt 0:30:24]} 42. Rc8+ {[%emt 0:00:31]} Ke7 {[%emt 0:02:09]} 43. Rc7+ {[%emt 0:00:12]} Rd7 {[%emt 0:00:03]} 44. Rxb7 {[%emt 0:00:08]} 1-0